[Event "***Titled Tuesday 3|2 Blitz"]
[Site "Chess.com"]
[Date "2017.02.07"]
[Round "2"]
[White "FairChess_on_YouTube"]
[Black "kpio91"]
[Result "1-0"]
[WhiteElo "2750"]
[BlackElo "2519"]
[TimeControl "180+2"]
[EndTime "13:31:33 PST"]
[Termination "FairChess_on_YouTube won on time"]

1. d4 {[%clk 0:03:02]} 1... Nf6 {[%clk 0:02:58.6]} 2. Bg5 {[%clk 0:03:01]} 2...
Ne4 {[%clk 0:02:56.2]} 3. Bf4 {[%clk 0:03:01.2]} 3... d5 {[%clk 0:02:57.3]} 4.
f3 {[%clk 0:03:01.2]} 4... Nd6 {[%clk 0:02:42.4]} 5. Nc3 {[%clk 0:03:01.6]} 5...
c6 {[%clk 0:02:42.1]} 6. e4 {[%clk 0:03:01.5]} 6... e6 {[%clk 0:02:32.4]} 7. Bd3
{[%clk 0:03:01.2]} 7... b6 {[%clk 0:02:28.6]} 8. Qe2 {[%clk 0:02:50.6]} 8... Be7
{[%clk 0:02:24.6]} 9. O-O-O {[%clk 0:02:49.2]} 9... Nd7 {[%clk 0:01:58.3]} 10.
exd5 {[%clk 0:02:47.4]} 10... cxd5 {[%clk 0:01:59.3]} 11. Nxd5 {[%clk
0:02:46.4]} 11... Bg5 {[%clk 0:01:58.7]} 12. Qd2 {[%clk 0:02:22.3]} 12... Bxf4
{[%clk 0:01:57.2]} 13. Qxf4 {[%clk 0:02:24.2]} 13... Nf8 {[%clk 0:01:20.8]} 14.
Qe5 {[%clk 0:02:06.2]} 14... f6 {[%clk 0:00:58]} 15. Qe3 {[%clk 0:02:05.7]}
15... Bb7 {[%clk 0:00:49.4]} 16. Nf4 {[%clk 0:02:02.5]} 16... Qd7 {[%clk
0:00:50.6]} 17. Nge2 {[%clk 0:01:58.7]} 17... O-O-O {[%clk 0:00:51.6]} 18. Kb1
{[%clk 0:01:59.4]} 18... Kb8 {[%clk 0:00:46.5]} 19. c4 {[%clk 0:02:00]} 19... g5
{[%clk 0:00:47.2]} 20. Nh5 {[%clk 0:02:00]} 20... Qf7 {[%clk 0:00:46.6]} 21.
Neg3 {[%clk 0:01:53.9]} 21... Nf5 {[%clk 0:00:39.1]} 22. Bxf5 {[%clk 0:01:45.7]}
22... exf5 {[%clk 0:00:40.1]} 23. f4 {[%clk 0:01:47.3]} 23... Bxg2 {[%clk
0:00:39]} 24. Rhg1 {[%clk 0:01:43.3]} 24... Be4+ {[%clk 0:00:38.3]} 25. Nxe4
{[%clk 0:01:43.5]} 25... fxe4 {[%clk 0:00:39.3]} 26. Ng3 {[%clk 0:01:42.4]}
26... Ne6 {[%clk 0:00:24.1]} 27. fxg5 {[%clk 0:01:39.1]} 27... Nxg5 {[%clk
0:00:23.9]} 28. Qf4+ {[%clk 0:01:30.2]} 28... Ka8 {[%clk 0:00:16.4]} 29. h4
{[%clk 0:01:23.8]} 29... Nf3 {[%clk 0:00:13.7]} 30. Qxe4+ {[%clk 0:01:23.1]}
30... Qb7 {[%clk 0:00:14.8]} 31. Rgf1 {[%clk 0:01:24.1]} 31... Qxe4+ {[%clk
0:00:13.4]} 32. Nxe4 {[%clk 0:01:24.5]} 32... Rxd4 {[%clk 0:00:06.1]} 33. Rxd4
{[%clk 0:01:24]} 33... Nxd4 {[%clk 0:00:07.3]} 34. Nxf6 {[%clk 0:01:19.7]} 34...
Rf8 {[%clk 0:00:08]} 35. b3 {[%clk 0:01:13.8]} 35... Kb7 {[%clk 0:00:06.4]} 36.
Rf2 {[%clk 0:01:10]} 36... Kc6 {[%clk 0:00:04]} 37. Kb2 {[%clk 0:01:09.3]} 37...
a5 {[%clk 0:00:04.3]} 38. Ne4 {[%clk 0:01:00.3]} 38... Rxf2+ {[%clk 0:00:04.6]}
39. Nxf2 {[%clk 0:01:02.2]} 39... h5 {[%clk 0:00:05.1]} 40. Nd3 {[%clk
0:01:00.5]} 40... Nf5 {[%clk 0:00:06.3]} 41. Nf4 {[%clk 0:01:01.8]} 41... Nxh4
{[%clk 0:00:07.5]} 42. Nxh5 {[%clk 0:01:03.4]} 42... Nf5 {[%clk 0:00:09.2]} 43.
Nf4 {[%clk 0:01:04.1]} 43... Nd4 {[%clk 0:00:10.3]} 44. Kc3 {[%clk 0:01:02.6]}
44... Nf5 {[%clk 0:00:11.3]} 45. Ne2 {[%clk 0:01:04.1]} 45... Kc5 {[%clk
0:00:10.4]} 46. Nc1 {[%clk 0:01:04.7]} 46... Nd6 {[%clk 0:00:11.2]} 47. Nd3+
{[%clk 0:01:06]} 47... Kc6 {[%clk 0:00:12.6]} 48. Kd4 {[%clk 0:01:07.4]} 48...
Nf5+ {[%clk 0:00:10.4]} 49. Ke4 {[%clk 0:01:08.5]} 49... Nd6+ {[%clk 0:00:11.7]}
50. Ke5 {[%clk 0:01:09.7]} 50... Nb7 {[%clk 0:00:10.3]} 51. Ke6 {[%clk
0:01:10.1]} 51... b5 {[%clk 0:00:09.6]} 52. Ke5 {[%clk 0:00:40.3]} 52... bxc4
{[%clk 0:00:05.6]} 53. bxc4 {[%clk 0:00:42.2]} 53... Nd6 {[%clk 0:00:06.7]} 54.
Kd4 {[%clk 0:00:42.8]} 54... Nf5+ {[%clk 0:00:08]} 55. Kc3 {[%clk 0:00:44.4]}
55... Nd6 {[%clk 0:00:09.4]} 56. Nc1 {[%clk 0:00:45.1]} 56... Ne4+ {[%clk
0:00:10.3]} 57. Kd4 {[%clk 0:00:45.2]} 57... Nd6 {[%clk 0:00:11.5]} 58. Nb3
{[%clk 0:00:46.2]} 58... Nf5+ {[%clk 0:00:08]} 59. Ke5 {[%clk 0:00:43.8]} 59...
Ne3 {[%clk 0:00:09.1]} 60. Kd4 {[%clk 0:00:44.9]} 60... Nf5+ {[%clk 0:00:08.3]}
61. Ke4 {[%clk 0:00:46.2]} 61... Nd6+ {[%clk 0:00:09]} 62. Kd3 {[%clk
0:00:47.8]} 62... a4 {[%clk 0:00:04.4]} 63. Nd2 {[%clk 0:00:46.2]} 63... Kc5
{[%clk 0:00:05.6]} 64. Kc3 {[%clk 0:00:47.2]} 64... Nf5 {[%clk 0:00:03.6]} 65.
Ne4+ {[%clk 0:00:47.9]} 65... Kc6 {[%clk 0:00:05]} 66. Kb4 {[%clk 0:00:49.1]}
66... Ne3 {[%clk 0:00:06.1]} 67. Nd2 {[%clk 0:00:38.4]} 67... a3 {[%clk
0:00:04.3]} 68. Kxa3 {[%clk 0:00:36.4]} 68... Kc5 {[%clk 0:00:05.5]} 69. Kb3
{[%clk 0:00:37.9]} 69... Nf5 {[%clk 0:00:06.2]} 70. Kc3 {[%clk 0:00:38.5]} 70...
Nd6 {[%clk 0:00:06.5]} 71. Nb3+ {[%clk 0:00:40]} 71... Kc6 {[%clk 0:00:07.7]}
72. Kb4 {[%clk 0:00:41.6]} 72... Ne4 {[%clk 0:00:05.9]} 73. a4 {[%clk
0:00:40.2]} 73... Kb6 {[%clk 0:00:07.1]} 74. a5+ {[%clk 0:00:41]} 74... Kc6
{[%clk 0:00:07.5]} 75. Nd4+ {[%clk 0:00:41.7]} 75... Kb7 {[%clk 0:00:08.4]} 76.
Ne6 {[%clk 0:00:42.6]} 76... Nd6 {[%clk 0:00:06.7]} 77. Nc5+ {[%clk 0:00:38.4]}
77... Kc6 {[%clk 0:00:07.1]} 78. Nb3 {[%clk 0:00:39.5]} 78... Kb7 {[%clk
0:00:07.4]} 79. Nd4 {[%clk 0:00:35.5]} 79... Ka6 {[%clk 0:00:07.4]} 80. c5
{[%clk 0:00:30]} 80... Ne4 {[%clk 0:00:03.9]} 81. Nb3 {[%clk 0:00:23.7]} 81...
Kb7 {[%clk 0:00:03.8]} 82. Kb5 {[%clk 0:00:22.2]} 82... Nc3+ {[%clk 0:00:04.4]}
83. Kc4 {[%clk 0:00:23.8]} 83... Ne4 {[%clk 0:00:05.5]} 84. Kd5 {[%clk
0:00:22.1]} 84... Nf6+ {[%clk 0:00:04.4]} 85. Ke5 {[%clk 0:00:21.5]} 85... Nd7+
{[%clk 0:00:04.9]} 86. Kd6 {[%clk 0:00:22.6]} 86... Nb8 {[%clk 0:00:06.5]} 87.
Nd4 {[%clk 0:00:21.7]} 87... Na6 {[%clk 0:00:05.1]} 88. c6+ {[%clk 0:00:21.9]}
88... Kc8 {[%clk 0:00:04]} 89. Nb5 {[%clk 0:00:22.9]} 89... Kb8 {[%clk 0:00:04]}
90. c7+ {[%clk 0:00:21.5]} 90... Kb7 {[%clk 0:00:04]} 91. Kd7 {[%clk 0:00:21.9]}
91... Nc5+ {[%clk 0:00:05.1]} 92. Kd6 {[%clk 0:00:22.5]} 92... Na6 {[%clk
0:00:05]} 93. Kd7 {[%clk 0:00:23]} 93... Nc5+ {[%clk 0:00:06.2]} 94. Ke7 {[%clk
0:00:24.5]} 94... Kc8 {[%clk 0:00:03.8]} 95. Kd6 {[%clk 0:00:24.5]} 95... Nb7+
{[%clk 0:00:05]} 96. Kc6 {[%clk 0:00:20.8]} 96... Nxa5+ {[%clk 0:00:06.2]} 97.
Kc5 {[%clk 0:00:22.4]} 97... Kb7 {[%clk 0:00:05.1]} 98. Kd5 {[%clk 0:00:21.6]}
98... Nc6 {[%clk 0:00:04.5]} 99. Kd6 {[%clk 0:00:23.1]} 99... Nb8 {[%clk
0:00:04.1]} 100. Na7 {[%clk 0:00:16.6]} 100... Na6 {[%clk 0:00:02.1]} 101. c8=Q+
{[%clk 0:00:16.3]} 1-0

[Event "***Titled Tuesday 3|2 Blitz"]
[Site "Chess.com"]
[Date "2017.02.07"]
[Round "2"]
[White "GGuseinov"]
[Black "Hikaru"]
[Result "1-0"]
[WhiteElo "2572"]
[BlackElo "2906"]
[TimeControl "180+2"]
[EndTime "13:32:51 PST"]
[Termination "GGuseinov won by resignation"]

1. e4 {[%clk 0:03:02]} 1... e5 {[%clk 0:02:58.8]} 2. Nf3 {[%clk 0:03:00]} 2...
Nc6 {[%clk 0:03:00]} 3. Bb5 {[%clk 0:03:01]} 3... Nf6 {[%clk 0:03:00.8]} 4. O-O
{[%clk 0:03:01.9]} 4... Nxe4 {[%clk 0:03:01.5]} 5. Re1 {[%clk 0:02:56.6]} 5...
Nd6 {[%clk 0:02:59]} 6. Nxe5 {[%clk 0:02:57.8]} 6... Be7 {[%clk 0:03:00.6]} 7.
Bf1 {[%clk 0:02:57.9]} 7... Nf5 {[%clk 0:03:01.7]} 8. Nf3 {[%clk 0:02:55.2]}
8... O-O {[%clk 0:03:02.5]} 9. d4 {[%clk 0:02:56.5]} 9... d5 {[%clk 0:03:04.1]}
10. c3 {[%clk 0:02:46.3]} 10... Bd6 {[%clk 0:03:02.9]} 11. Bd3 {[%clk
0:02:43.6]} 11... Re8 {[%clk 0:03:01]} 12. Rxe8+ {[%clk 0:02:39.9]} 12... Qxe8
{[%clk 0:03:02.1]} 13. Nbd2 {[%clk 0:02:41.2]} 13... Nce7 {[%clk 0:02:54.2]} 14.
Nf1 {[%clk 0:02:40.1]} 14... Qf8 {[%clk 0:02:49.8]} 15. Ne3 {[%clk 0:02:29.3]}
15... Nxe3 {[%clk 0:02:48.1]} 16. Bxe3 {[%clk 0:02:30.5]} 16... c6 {[%clk
0:02:45.4]} 17. Qc2 {[%clk 0:02:28.7]} 17... g6 {[%clk 0:02:46.6]} 18. Re1
{[%clk 0:02:22.6]} 18... Bf5 {[%clk 0:02:47]} 19. h3 {[%clk 0:02:08.2]} 19...
Re8 {[%clk 0:02:43.4]} 20. Qd2 {[%clk 0:02:04.1]} 20... f6 {[%clk 0:02:38]} 21.
Bxf5 {[%clk 0:01:56.7]} 21... Nxf5 {[%clk 0:02:38.4]} 22. Bf4 {[%clk 0:01:58.1]}
22... Rxe1+ {[%clk 0:02:36.7]} 23. Nxe1 {[%clk 0:01:59.1]} 23... Qe7 {[%clk
0:02:38.2]} 24. Bxd6 {[%clk 0:01:51.1]} 24... Nxd6 {[%clk 0:02:38.2]} 25. Nd3
{[%clk 0:01:40.9]} 25... a5 {[%clk 0:02:36.1]} 26. Kf1 {[%clk 0:01:38.2]} 26...
b6 {[%clk 0:02:34.1]} 27. Qe2 {[%clk 0:01:37.9]} 27... Ne4 {[%clk 0:02:27.6]}
28. Qe3 {[%clk 0:01:35.6]} 28... Kf7 {[%clk 0:02:26.7]} 29. g3 {[%clk
0:01:08.9]} 29... g5 {[%clk 0:02:23]} 30. Kg2 {[%clk 0:01:08.4]} 30... Qe6
{[%clk 0:02:22.6]} 31. f3 {[%clk 0:00:57.2]} 31... Nd6 {[%clk 0:02:22.6]} 32.
Qxe6+ {[%clk 0:00:58.4]} 32... Kxe6 {[%clk 0:02:24.5]} 33. g4 {[%clk 0:00:55.5]}
33... a4 {[%clk 0:02:24.5]} 34. h4 {[%clk 0:00:46.7]} 34... a3 {[%clk
0:02:14.1]} 35. hxg5 {[%clk 0:00:28.3]} 35... axb2 {[%clk 0:02:09.3]} 36. Nxb2
{[%clk 0:00:30.2]} 36... fxg5 {[%clk 0:02:10.1]} 37. Kf2 {[%clk 0:00:31.7]}
37... Kd7 {[%clk 0:01:57.7]} 38. Ke3 {[%clk 0:00:32.4]} 38... h6 {[%clk
0:01:58.3]} 39. Kd3 {[%clk 0:00:32.9]} 39... b5 {[%clk 0:01:54.5]} 40. a4 {[%clk
0:00:32.8]} 40... bxa4 {[%clk 0:01:17.8]} 41. Nxa4 {[%clk 0:00:33.5]} 41... Nc4
{[%clk 0:01:17.4]} 42. Nc5+ {[%clk 0:00:34.1]} 42... Kd6 {[%clk 0:01:18.9]} 43.
Nb7+ {[%clk 0:00:33.7]} 43... Ke7 {[%clk 0:01:19.9]} 44. Nc5 {[%clk 0:00:34.2]}
44... Nd6 {[%clk 0:01:20.2]} 45. Nb3 {[%clk 0:00:33.6]} 45... Ne8 {[%clk
0:01:20.7]} 46. Nd2 {[%clk 0:00:28.6]} 46... Ng7 {[%clk 0:01:20]} 47. Nf1 {[%clk
0:00:27]} 47... Ne6 {[%clk 0:01:21]} 48. Ng3 {[%clk 0:00:26.2]} 48... Kf6 {[%clk
0:01:22.1]} 49. Ke3 {[%clk 0:00:23.8]} 49... Nf4 {[%clk 0:01:22.3]} 50. Ne2
{[%clk 0:00:19]} 50... Ng6 {[%clk 0:01:19.1]} 51. Ng3 {[%clk 0:00:19.8]} 51...
Nh4 {[%clk 0:01:19.1]} 52. Nh5+ {[%clk 0:00:20.2]} 52... Kf7 {[%clk 0:01:19.1]}
53. Ng3 {[%clk 0:00:21.6]} 53... Kg6 {[%clk 0:01:18]} 54. Nh5 {[%clk 0:00:20.7]}
54... Kf7 {[%clk 0:01:18.4]} 55. Ng3 {[%clk 0:00:22]} 55... Ke7 {[%clk
0:01:19.8]} 56. Nh5 {[%clk 0:00:21.8]} 56... Ng6 {[%clk 0:01:21.1]} 57. Ng3
{[%clk 0:00:22.9]} 57... Kf6 {[%clk 0:01:22.4]} 58. Nh5+ {[%clk 0:00:23.7]}
58... Kf7 {[%clk 0:01:23.8]} 59. Ng3 {[%clk 0:00:25.6]} 59... Ne7 {[%clk
0:01:24]} 60. Nh5 {[%clk 0:00:25.1]} 60... Nc8 {[%clk 0:01:22.4]} 61. Ng3 {[%clk
0:00:26.3]} 61... Nd6 {[%clk 0:01:23.8]} 62. Nh5 {[%clk 0:00:27.3]} 62... Ne8
{[%clk 0:01:21.3]} 63. Ng3 {[%clk 0:00:27.9]} 63... Nd6 {[%clk 0:01:22.4]} 64.
Nh5 {[%clk 0:00:29]} 64... Nb5 {[%clk 0:01:21]} 65. Kd3 {[%clk 0:00:29.7]} 65...
Nc7 {[%clk 0:01:21.1]} 66. Ke3 {[%clk 0:00:30.3]} 66... Ne8 {[%clk 0:01:19.9]}
67. Ng3 {[%clk 0:00:31.3]} 67... Nd6 {[%clk 0:01:21.5]} 68. Nh5 {[%clk
0:00:32.5]} 68... Ke7 {[%clk 0:01:23.1]} 69. Ng3 {[%clk 0:00:31]} 69... Kd7
{[%clk 0:01:24.7]} 70. Nh5 {[%clk 0:00:32.1]} 70... Ne8 {[%clk 0:01:21.7]} 71.
Ng3 {[%clk 0:00:32.7]} 71... Nf6 {[%clk 0:01:22.9]} 72. Nf5 {[%clk 0:00:24.8]}
72... h5 {[%clk 0:01:23.8]} 73. gxh5 {[%clk 0:00:26.3]} 73... Nxh5 {[%clk
0:01:25.7]} 74. Nh6 {[%clk 0:00:26.4]} 74... Ke6 {[%clk 0:01:24.1]} 75. Ng4
{[%clk 0:00:27.5]} 75... Ng3 {[%clk 0:01:24.1]} 76. Kf2 {[%clk 0:00:24]} 76...
Nf5 {[%clk 0:01:25.2]} 77. Ke2 {[%clk 0:00:24.5]} 77... Ne7 {[%clk 0:01:25]} 78.
Ke3 {[%clk 0:00:24.8]} 78... Kf5 {[%clk 0:01:24.5]} 79. Nh6+ {[%clk 0:00:23.4]}
79... Ke6 {[%clk 0:01:25.5]} 80. Ng4 {[%clk 0:00:25.3]} 80... Ng6 {[%clk
0:01:26.9]} 81. Nh6 {[%clk 0:00:24.4]} 81... Nh8 {[%clk 0:01:22.8]} 82. Kf2
{[%clk 0:00:23.2]} 82... Ng6 {[%clk 0:01:22.4]} 83. Ke3 {[%clk 0:00:24.4]} 83...
Ne7 {[%clk 0:01:23.7]} 84. Kf2 {[%clk 0:00:21.3]} 84... Nc8 {[%clk 0:01:22.7]}
85. Ke3 {[%clk 0:00:20.8]} 85... Nd6 {[%clk 0:01:24.3]} 86. Ng4 {[%clk
0:00:19.9]} 86... Nc4+ {[%clk 0:01:23.8]} 87. Kf2 {[%clk 0:00:12.5]} 87... Nb2
{[%clk 0:01:22.8]} 88. Ke3 {[%clk 0:00:11.4]} 88... Kf5 {[%clk 0:01:23.5]} 89.
Nh6+ {[%clk 0:00:11.3]} 89... Ke6 {[%clk 0:01:24.2]} 90. Ng4 {[%clk 0:00:13.2]}
90... Na4 {[%clk 0:01:24.1]} 91. Kd3 {[%clk 0:00:13.9]} 91... Kf5 {[%clk
0:01:25.4]} 92. Nh6+ {[%clk 0:00:07.6]} 92... Kf4 {[%clk 0:01:25.5]} 93. Nf7
{[%clk 0:00:09.2]} 93... Nb2+ {[%clk 0:01:20.6]} 94. Ke2 {[%clk 0:00:10.4]}
94... Na4 {[%clk 0:01:21.7]} 95. Kd3 {[%clk 0:00:11.7]} 95... Nb6 {[%clk
0:01:22.4]} 96. Ke2 {[%clk 0:00:11.1]} 96... Nc8 {[%clk 0:01:17.3]} 97. Ne5
{[%clk 0:00:11.3]} 97... Ne7 {[%clk 0:01:18.8]} 98. Kf2 {[%clk 0:00:11.2]} 98...
Kf5 {[%clk 0:01:19.8]} 99. Nd3 {[%clk 0:00:09.4]} 99... Kf6 {[%clk 0:01:19.6]}
100. Ne5 {[%clk 0:00:09.4]} 100... Ke6 {[%clk 0:01:21]} 101. Nd3 {[%clk
0:00:10.1]} 101... Nf5 {[%clk 0:01:22.6]} 102. Ke2 {[%clk 0:00:09.9]} 102... Nh4
{[%clk 0:01:22.4]} 103. Kf2 {[%clk 0:00:10.1]} 103... Nf5 {[%clk 0:01:22.8]}
104. Nb4 {[%clk 0:00:10.1]} 104... Kd6 {[%clk 0:01:19]} 105. Nd3 {[%clk
0:00:11.4]} 105... Ke6 {[%clk 0:01:15.4]} 106. Nb4 {[%clk 0:00:12.2]} 106... Ne7
{[%clk 0:01:17]} 107. Nd3 {[%clk 0:00:13.1]} 107... Kf5 {[%clk 0:01:17.3]} 108.
Ke3 {[%clk 0:00:14.5]} 108... Kf6 {[%clk 0:01:16.5]} 109. Ne5 {[%clk 0:00:14.1]}
109... Kf5 {[%clk 0:01:16.3]} 110. Nd3 {[%clk 0:00:14.8]} 110... Kg6 {[%clk
0:01:16.1]} 111. Ne5+ {[%clk 0:00:10]} 111... Kf6 {[%clk 0:01:17.1]} 112. Ng4+
{[%clk 0:00:09.4]} 112... Ke6 {[%clk 0:01:18.4]} 113. Kf2 {[%clk 0:00:06.6]}
113... Nf5 {[%clk 0:01:19.5]} 114. Ke2 {[%clk 0:00:07.3]} 114... Nd6 {[%clk
0:01:19.9]} 115. Ke3 {[%clk 0:00:07.9]} 115... Nb5 {[%clk 0:01:15.9]} 116. Kd3
{[%clk 0:00:08.8]} 116... Kf5 {[%clk 0:01:17.5]} 117. Nh6+ {[%clk 0:00:10]}
117... Kf4 {[%clk 0:01:18.2]} 118. Nf7 {[%clk 0:00:11.4]} 118... Nd6 {[%clk
0:01:07.9]} 119. Nxd6 {[%clk 0:00:10.7]} 119... Kxf3 {[%clk 0:01:08.7]} 120. Nf7
{[%clk 0:00:09]} 120... g4 {[%clk 0:01:05.3]} 121. Ne5+ {[%clk 0:00:09.6]}
121... Kf4 {[%clk 0:01:04.8]} 122. Ke2 {[%clk 0:00:10.7]} 122... g3 {[%clk
0:01:04.6]} 123. Nxc6 {[%clk 0:00:10.4]} 123... Kg4 {[%clk 0:01:04.8]} 124. Kf1
{[%clk 0:00:11.1]} 124... Kf3 {[%clk 0:01:05]} 125. Ne7 {[%clk 0:00:10.5]}
125... Ke4 {[%clk 0:01:06]} 126. Kg2 {[%clk 0:00:11.8]} 1-0

[Event "***Titled Tuesday 3|2 Blitz"]
[Site "Chess.com"]
[Date "2017.02.07"]
[Round "3"]
[White "Grootneus"]
[Black "Evgeny81"]
[Result "0-1"]
[WhiteElo "2126"]
[BlackElo "2400"]
[TimeControl "180+2"]
[EndTime "13:37:03 PST"]
[Termination "Evgeny81 won by resignation"]

1. e4 {[%clk 0:01:33.1]} 1... c6 {[%clk 0:02:58.2]} 2. d4 {[%clk 0:01:33.9]}
2... d5 {[%clk 0:02:59.8]} 3. Nc3 {[%clk 0:01:35.5]} 3... dxe4 {[%clk
0:02:59.3]} 4. Nxe4 {[%clk 0:01:37.4]} 4... Bf5 {[%clk 0:03:00.6]} 5. Ng3 {[%clk
0:01:38.7]} 5... Bg6 {[%clk 0:03:02.2]} 6. h4 {[%clk 0:01:40.3]} 6... h6 {[%clk
0:03:03.1]} 7. Nf3 {[%clk 0:01:40.8]} 7... Nd7 {[%clk 0:03:04.3]} 8. h5 {[%clk
0:01:42.5]} 8... Bh7 {[%clk 0:03:04.8]} 9. Bd3 {[%clk 0:01:44.3]} 9... Bxd3
{[%clk 0:03:06.4]} 10. Qxd3 {[%clk 0:01:46.2]} 10... e6 {[%clk 0:03:07.9]} 11.
Bd2 {[%clk 0:01:47.9]} 11... Ngf6 {[%clk 0:03:08.1]} 12. O-O-O {[%clk 0:01:49]}
12... Be7 {[%clk 0:03:09.7]} 13. Kb1 {[%clk 0:01:48.4]} 13... O-O {[%clk
0:03:10]} 14. Ne4 {[%clk 0:01:31.7]} 14... Nxe4 {[%clk 0:03:08.6]} 15. Qxe4
{[%clk 0:01:33.6]} 15... Nf6 {[%clk 0:03:09]} 16. Qe2 {[%clk 0:01:34.7]} 16...
Qd5 {[%clk 0:03:09]} 17. Ne5 {[%clk 0:01:36.1]} 17... Rad8 {[%clk 0:03:03.3]}
18. g4 {[%clk 0:01:27.3]} 18... Qe4 {[%clk 0:02:57.8]} 19. Be3 {[%clk
0:01:23.2]} 19... Rxd4 {[%clk 0:02:54.4]} 20. Rxd4 {[%clk 0:01:20.4]} 20...
Qxh1+ {[%clk 0:02:55.2]} 0-1

[Event "***Titled Tuesday 3|2 Blitz"]
[Site "Chess.com"]
[Date "2017.02.07"]
[Round "3"]
[White "dcremisi"]
[Black "DryCounty"]
[Result "0-1"]
[WhiteElo "2247"]
[BlackElo "2397"]
[TimeControl "180+2"]
[EndTime "13:37:09 PST"]
[Termination "DryCounty won by resignation"]

1. d4 {[%clk 0:02:58.5]} 1... Nf6 {[%clk 0:02:56.6]} 2. c4 {[%clk 0:02:59]} 2...
g6 {[%clk 0:02:56]} 3. Nc3 {[%clk 0:02:58.8]} 3... Bg7 {[%clk 0:02:56.8]} 4. e4
{[%clk 0:02:59.3]} 4... O-O {[%clk 0:02:57.4]} 5. f3 {[%clk 0:03:00.3]} 5... d6
{[%clk 0:02:58.6]} 6. Be3 {[%clk 0:03:00.8]} 6... c5 {[%clk 0:02:59.4]} 7. Nge2
{[%clk 0:03:01.1]} 7... Nc6 {[%clk 0:02:58.4]} 8. Qd2 {[%clk 0:03:02.1]} 8... e6
{[%clk 0:02:55.8]} 9. O-O-O {[%clk 0:03:00.9]} 9... cxd4 {[%clk 0:02:50.1]} 10.
Nxd4 {[%clk 0:03:01.4]} 10... d5 {[%clk 0:02:47.4]} 11. cxd5 {[%clk 0:03:00.8]}
11... exd5 {[%clk 0:02:46.7]} 12. exd5 {[%clk 0:02:59.3]} 12... Nxd5 {[%clk
0:02:45.7]} 13. Nxc6 {[%clk 0:02:56.2]} 13... bxc6 {[%clk 0:02:44]} 14. Nxd5
{[%clk 0:02:57.4]} 14... cxd5 {[%clk 0:02:43.3]} 15. Qxd5 {[%clk 0:02:58.4]}
15... Qf6 {[%clk 0:02:08.3]} 16. Bd4 {[%clk 0:02:47.2]} 16... Qf4+ {[%clk
0:02:07.3]} 17. Kb1 {[%clk 0:02:45.4]} 17... Bf5+ {[%clk 0:02:05.9]} 18. Bd3
{[%clk 0:02:36.4]} 18... Rad8 {[%clk 0:02:01.7]} 0-1

[Event "***Titled Tuesday 3|2 Blitz"]
[Site "Chess.com"]
[Date "2017.02.07"]
[Round "3"]
[White "PlotnikovPavel"]
[Black "martinique24"]
[Result "0-1"]
[WhiteElo "2305"]
[BlackElo "2319"]
[TimeControl "180+2"]
[EndTime "13:37:52 PST"]
[Termination "martinique24 won by resignation"]

1. d4 {[%clk 0:03:02]} 1... Nf6 {[%clk 0:02:59.6]} 2. Nf3 {[%clk 0:03:00.8]}
2... g6 {[%clk 0:03:00.3]} 3. g3 {[%clk 0:03:01.4]} 3... Bg7 {[%clk 0:02:59]} 4.
Bg2 {[%clk 0:03:02.4]} 4... O-O {[%clk 0:02:57.7]} 5. O-O {[%clk 0:03:03.4]}
5... d5 {[%clk 0:02:57.9]} 6. Nbd2 {[%clk 0:03:02.8]} 6... c6 {[%clk 0:02:54.9]}
7. c4 {[%clk 0:03:03.3]} 7... Bf5 {[%clk 0:02:52.8]} 8. b3 {[%clk 0:03:04.3]}
8... Ne4 {[%clk 0:02:51.6]} 9. Bb2 {[%clk 0:03:05.2]} 9... Qa5 {[%clk
0:02:51.4]} 10. Qc1 {[%clk 0:02:58.8]} 10... Nd7 {[%clk 0:02:46.3]} 11. Nxe4
{[%clk 0:02:48.8]} 11... Bxe4 {[%clk 0:02:45.5]} 12. Bc3 {[%clk 0:02:48.8]}
12... Qa6 {[%clk 0:02:29.4]} 13. Bb4 {[%clk 0:02:42.8]} 13... c5 {[%clk
0:02:18.3]} 14. dxc5 {[%clk 0:02:33.5]} 14... Bxa1 {[%clk 0:02:10]} 15. Qxa1
{[%clk 0:02:35.4]} 15... dxc4 {[%clk 0:02:10.3]} 16. Bd2 {[%clk 0:02:30.3]}
16... cxb3 {[%clk 0:02:00.7]} 17. Bh6 {[%clk 0:02:30.7]} 17... Qf6 {[%clk
0:01:37.2]} 18. Bxf8 {[%clk 0:02:30.1]} 18... Qxa1 {[%clk 0:01:34.8]} 19. Rxa1
{[%clk 0:02:29.7]} 19... b2 {[%clk 0:01:33.7]} 20. Rd1 {[%clk 0:02:30.3]} 20...
Nxf8 {[%clk 0:01:17.4]} 21. Nd2 {[%clk 0:02:29.6]} 21... Bxg2 {[%clk 0:01:17.5]}
22. Kxg2 {[%clk 0:02:30.7]} 22... Rd8 {[%clk 0:01:18.6]} 0-1

[Event "***Titled Tuesday 3|2 Blitz"]
[Site "Chess.com"]
[Date "2017.02.07"]
[Round "3"]
[White "AllStarShark"]
[Black "olgerts_indricans"]
[Result "1-0"]
[WhiteElo "2266"]
[BlackElo "2322"]
[TimeControl "180+2"]
[EndTime "13:38:28 PST"]
[Termination "AllStarShark won by resignation"]

1. d4 {[%clk 0:03:02]} 1... Nf6 {[%clk 0:03:00.3]} 2. Bg5 {[%clk 0:03:01.4]}
2... d5 {[%clk 0:02:57.1]} 3. Bxf6 {[%clk 0:03:01.7]} 3... gxf6 {[%clk
0:02:52.8]} 4. c4 {[%clk 0:02:59.9]} 4... Nc6 {[%clk 0:02:44.2]} 5. e3 {[%clk
0:03:00.2]} 5... Bf5 {[%clk 0:02:34.5]} 6. Nc3 {[%clk 0:02:54.9]} 6... dxc4
{[%clk 0:01:52.1]} 7. Bxc4 {[%clk 0:02:56.8]} 7... Bg6 {[%clk 0:01:40]} 8. Nge2
{[%clk 0:02:54.9]} 8... a6 {[%clk 0:01:35.5]} 9. Nf4 {[%clk 0:02:55.6]} 9... e6
{[%clk 0:01:32.2]} 10. Nxg6 {[%clk 0:02:37]} 10... hxg6 {[%clk 0:01:30.9]} 11.
h3 {[%clk 0:02:38.2]} 11... Bb4 {[%clk 0:01:26.5]} 12. Qb3 {[%clk 0:02:36.3]}
12... Qe7 {[%clk 0:00:44]} 13. a3 {[%clk 0:02:35.2]} 13... Na5 {[%clk
0:00:44.3]} 14. Qa4+ {[%clk 0:02:19]} 14... c6 {[%clk 0:00:44.3]} 15. Be2 {[%clk
0:01:59.6]} 15... b5 {[%clk 0:00:42.2]} 16. Qxb4 {[%clk 0:01:58.8]} 1-0